[Event "*** Titled Tuesday Blitz"]
[Site "Chess.com"]
[Date "2020.04.21"]
[Round "3"]
[White "otrov-11"]
[Black "TST2014"]
[Result "0-1"]
[WhiteElo "2374"]
[BlackElo "2594"]
[TimeControl "180+1"]
[EndTime "10:28:54 PDT"]
[Termination "TST2014 won by resignation"]

1. d4 {[%clk 0:02:58.7]} 1... Nf6 {[%clk 0:02:59.3]} 2. c4 {[%clk 0:02:58.3]}
2... d6 {[%clk 0:02:59.6]} 3. Nf3 {[%clk 0:02:57.4]} 3... Nbd7 {[%clk
0:02:59.6]} 4. Nc3 {[%clk 0:02:54.2]} 4... e5 {[%clk 0:02:59.1]} 5. e4 {[%clk
0:02:54.3]} 5... Be7 {[%clk 0:02:58.8]} 6. Be2 {[%clk 0:02:52.7]} 6... c6 {[%clk
0:02:58.8]} 7. h3 {[%clk 0:02:51.3]} 7... O-O {[%clk 0:02:58.8]} 8. Be3 {[%clk
0:02:51.2]} 8... a6 {[%clk 0:02:57.5]} 9. a4 {[%clk 0:02:50.4]} 9... Qc7 {[%clk
0:02:52.4]} 10. O-O {[%clk 0:02:49.8]} 10... a5 {[%clk 0:02:51.3]} 11. Rc1
{[%clk 0:02:47]} 11... Nb8 {[%clk 0:02:51.3]} 12. d5 {[%clk 0:02:38.1]} 12...
Na6 {[%clk 0:02:49.2]} 13. Nd2 {[%clk 0:02:36.4]} 13... Ne8 {[%clk 0:02:42.2]}
14. f4 {[%clk 0:02:34.9]} 14... exf4 {[%clk 0:02:37.6]} 15. Bxf4 {[%clk
0:02:35.8]} 15... Nc5 {[%clk 0:02:33.8]} 16. Nb3 {[%clk 0:02:25.9]} 16... Nxb3
{[%clk 0:02:22.6]} 17. Qxb3 {[%clk 0:02:26.8]} 17... Bf6 {[%clk 0:02:15.1]} 18.
c5 {[%clk 0:02:23.1]} 18... Be5 {[%clk 0:02:14.2]} 19. Bxe5 {[%clk 0:02:22]}
19... dxe5 {[%clk 0:02:14.4]} 20. d6 {[%clk 0:02:22.5]} 20... Qd8 {[%clk
0:02:07.9]} 21. Bc4 {[%clk 0:02:20.7]} 21... Nf6 {[%clk 0:02:01.1]} 22. g4
{[%clk 0:01:59.2]} 22... h6 {[%clk 0:01:55.7]} 23. Rf2 {[%clk 0:01:50.6]} 23...
Rb8 {[%clk 0:01:50.2]} 24. Rxf6 {[%clk 0:01:25.4]} 24... Qxf6 {[%clk 0:01:48.7]}
25. Rf1 {[%clk 0:01:25.4]} 25... Qg6 {[%clk 0:01:44.5]} 26. Ne2 {[%clk
0:01:06.6]} 26... h5 {[%clk 0:01:39.4]} 27. Ng3 {[%clk 0:01:04]} 27... hxg4
{[%clk 0:01:38.7]} 28. h4 {[%clk 0:01:03.7]} 28... b6 {[%clk 0:01:26]} 29. h5
{[%clk 0:01:02.7]} 29... Qg5 {[%clk 0:01:17.6]} 30. Rxf7 {[%clk 0:00:56]} 30...
Rxf7 {[%clk 0:01:11.2]} 31. Bxf7+ {[%clk 0:00:56.9]} 31... Kh8 {[%clk
0:01:11.5]} 32. cxb6 {[%clk 0:00:43]} 32... Qc1+ {[%clk 0:01:08.2]} 33. Kh2
{[%clk 0:00:28.3]} 33... Qd2+ {[%clk 0:01:06]} 34. Kh1 {[%clk 0:00:27.4]} 34...
Qxd6 {[%clk 0:01:01.1]} 35. Bg6 {[%clk 0:00:21]} 35... Be6 {[%clk 0:00:59.4]}
36. Qe3 {[%clk 0:00:19.5]} 36... Qd1+ {[%clk 0:00:54.2]} 37. Kg2 {[%clk
0:00:19.4]} 37... Rd8 {[%clk 0:00:46.7]} 38. Nf1 {[%clk 0:00:17.9]} 38... Bc4
{[%clk 0:00:36.2]} 39. h6 {[%clk 0:00:02.5]} 39... Qxf1+ {[%clk 0:00:30.8]} 0-1

[Event "*** Titled Tuesday Blitz"]
[Site "Chess.com"]
[Date "2020.04.21"]
[Round "3"]
[White "viditchess"]
[Black "viktorskliarov"]
[Result "1-0"]
[WhiteElo "2960"]
[BlackElo "2681"]
[TimeControl "180+1"]
[EndTime "10:28:55 PDT"]
[Termination "viditchess won by resignation"]

1. d4 {[%clk 0:03:00.9]} 1... Nf6 {[%clk 0:02:59.5]} 2. c4 {[%clk 0:03:00.8]}
2... e6 {[%clk 0:02:59.9]} 3. Nf3 {[%clk 0:03:00.6]} 3... b6 {[%clk 0:02:59.9]}
4. g3 {[%clk 0:03:00.3]} 4... Bb7 {[%clk 0:03:00.3]} 5. Bg2 {[%clk 0:03:00.4]}
5... Be7 {[%clk 0:03:00]} 6. O-O {[%clk 0:03:00.4]} 6... O-O {[%clk 0:03:00.6]}
7. Re1 {[%clk 0:03:00.3]} 7... Na6 {[%clk 0:03:00.2]} 8. a3 {[%clk 0:02:58.8]}
8... c5 {[%clk 0:02:58]} 9. d5 {[%clk 0:02:54.8]} 9... exd5 {[%clk 0:02:57.7]}
10. Nh4 {[%clk 0:02:53.9]} 10... Re8 {[%clk 0:02:51.3]} 11. Nf5 {[%clk
0:02:44.1]} 11... Bf8 {[%clk 0:02:51.2]} 12. Nc3 {[%clk 0:02:39.8]} 12... Nc7
{[%clk 0:02:49.8]} 13. cxd5 {[%clk 0:02:33.3]} 13... d6 {[%clk 0:02:49.6]} 14.
e4 {[%clk 0:02:32.3]} 14... b5 {[%clk 0:02:25]} 15. b4 {[%clk 0:02:25.2]} 15...
cxb4 {[%clk 0:02:01.1]} 16. axb4 {[%clk 0:02:24.2]} 16... Na6 {[%clk 0:02:01.8]}
17. Rb1 {[%clk 0:02:17.5]} 17... Rc8 {[%clk 0:01:23.7]} 18. Nxb5 {[%clk
0:02:14]} 18... Rc4 {[%clk 0:01:23.6]} 19. Bf4 {[%clk 0:01:53.5]} 19... Nxe4
{[%clk 0:01:05.4]} 20. Qd3 {[%clk 0:00:39.1]} 20... Qc8 {[%clk 0:00:57.5]} 21.
Rxe4 {[%clk 0:00:23.5]} 21... Qxf5 {[%clk 0:00:49.9]} 22. Qxc4 {[%clk
0:00:22.9]} 22... Bxd5 {[%clk 0:00:50.1]} 23. Qxd5 {[%clk 0:00:17.4]} 23... Qxd5
{[%clk 0:00:47.4]} 24. Rxe8 {[%clk 0:00:17.4]} 24... Qxb5 {[%clk 0:00:47.6]} 25.
Rbe1 {[%clk 0:00:18]} 25... Nc7 {[%clk 0:00:35.6]} 26. Rxf8+ {[%clk 0:00:17.4]}
26... Kxf8 {[%clk 0:00:32]} 27. Bxd6+ {[%clk 0:00:18.3]} 27... Kg8 {[%clk
0:00:32.2]} 28. Bxc7 {[%clk 0:00:18.9]} 28... h6 {[%clk 0:00:28.1]} 29. Bd6
{[%clk 0:00:19]} 29... Kh7 {[%clk 0:00:19.9]} 30. Bf1 {[%clk 0:00:18.7]} 30...
Qb7 {[%clk 0:00:18.5]} 31. Bc5 {[%clk 0:00:18.9]} 31... a6 {[%clk 0:00:16.5]}
32. Ra1 {[%clk 0:00:19.3]} 32... Qd5 {[%clk 0:00:15.7]} 33. Rxa6 {[%clk
0:00:19.9]} 33... h5 {[%clk 0:00:16.1]} 34. Rd6 {[%clk 0:00:20]} 34... Qb3
{[%clk 0:00:15.6]} 35. h4 {[%clk 0:00:20.6]} 35... g6 {[%clk 0:00:15.7]} 36. Rd4
{[%clk 0:00:20.6]} 36... Qb2 {[%clk 0:00:15.6]} 37. Rf4 {[%clk 0:00:21]} 37...
Kg7 {[%clk 0:00:16]} 38. Be3 {[%clk 0:00:21.5]} 38... Qb1 {[%clk 0:00:15.7]} 39.
b5 {[%clk 0:00:21.5]} 39... f5 {[%clk 0:00:15.3]} 40. b6 {[%clk 0:00:21.8]}
40... Kf6 {[%clk 0:00:15.8]} 41. Kg2 {[%clk 0:00:20.7]} 41... Qb3 {[%clk
0:00:14.6]} 42. Be2 {[%clk 0:00:20.9]} 42... Qd5+ {[%clk 0:00:14.8]} 43. Bf3
{[%clk 0:00:21.3]} 43... Qb5 {[%clk 0:00:15.4]} 44. b7 {[%clk 0:00:21.8]} 44...
Qb3 {[%clk 0:00:14.6]} 45. Rd4 {[%clk 0:00:22.2]} 45... Qb6 {[%clk 0:00:13.9]}
46. Rd2 {[%clk 0:00:21.8]} 46... Qb4 {[%clk 0:00:14]} 47. Bf4 {[%clk 0:00:22.4]}
1-0

[Event "*** Titled Tuesday Blitz"]
[Site "Chess.com"]
[Date "2020.04.21"]
[Round "3"]
[White "Baby_Legs"]
[Black "Indianlad"]
[Result "1-0"]
[WhiteElo "2706"]
[BlackElo "2980"]
[TimeControl "180+1"]
[EndTime "10:28:56 PDT"]
[Termination "Baby_Legs won by resignation"]

1. d4 {[%clk 0:03:00.9]} 1... Nf6 {[%clk 0:03:00.4]} 2. c4 {[%clk 0:03:00.4]}
2... g6 {[%clk 0:03:00.9]} 3. Nc3 {[%clk 0:03:00.4]} 3... d5 {[%clk 0:03:01.4]}
4. Nf3 {[%clk 0:03:00.4]} 4... Bg7 {[%clk 0:03:01.4]} 5. Bf4 {[%clk 0:03:01.1]}
5... c6 {[%clk 0:02:53.4]} 6. e3 {[%clk 0:03:00.4]} 6... O-O {[%clk 0:02:53.7]}
7. Be2 {[%clk 0:02:56.7]} 7... Be6 {[%clk 0:02:53.5]} 8. c5 {[%clk 0:02:53.7]}
8... Bg4 {[%clk 0:02:52.3]} 9. Qb3 {[%clk 0:02:47.4]} 9... Bxf3 {[%clk 0:02:43]}
10. Bxf3 {[%clk 0:02:48.3]} 10... Qc8 {[%clk 0:02:39.1]} 11. O-O {[%clk
0:02:41.6]} 11... Nbd7 {[%clk 0:02:39.7]} 12. Rac1 {[%clk 0:02:35.5]} 12... Re8
{[%clk 0:02:39]} 13. Bg3 {[%clk 0:02:29.8]} 13... e5 {[%clk 0:02:37.2]} 14. Rfd1
{[%clk 0:02:29.1]} 14... h5 {[%clk 0:02:36.3]} 15. h3 {[%clk 0:02:27.5]} 15...
Nh7 {[%clk 0:02:35]} 16. Nxd5 {[%clk 0:02:00.1]} 16... e4 {[%clk 0:02:25.2]} 17.
Be2 {[%clk 0:01:56.9]} 17... cxd5 {[%clk 0:02:24.4]} 18. Qxd5 {[%clk 0:01:57.8]}
18... Ndf6 {[%clk 0:01:52.2]} 19. Qb3 {[%clk 0:01:55.2]} 19... Ng5 {[%clk
0:01:45.6]} 20. h4 {[%clk 0:01:50.2]} 20... Ne6 {[%clk 0:01:45.7]} 21. d5 {[%clk
0:01:37.2]} 21... Nxc5 {[%clk 0:01:10.6]} 22. Qa3 {[%clk 0:01:37]} 22... b6
{[%clk 0:00:46.1]} 23. b4 {[%clk 0:01:36.4]} 23... Nfd7 {[%clk 0:00:38.6]} 24.
bxc5 {[%clk 0:01:27.8]} 24... Nxc5 {[%clk 0:00:39.4]} 25. Bb5 {[%clk 0:01:26.5]}
25... Rd8 {[%clk 0:00:38.9]} 26. Bc6 {[%clk 0:01:26.1]} 26... Nd3 {[%clk
0:00:37.3]} 27. Rxd3 {[%clk 0:01:24.4]} 27... exd3 {[%clk 0:00:37.3]} 28. Qxd3
{[%clk 0:01:21.9]} 28... Bf8 {[%clk 0:00:32.5]} 29. Rc2 {[%clk 0:01:20.1]} 29...
Qg4 {[%clk 0:00:32.3]} 30. Bxa8 {[%clk 0:01:18.4]} 30... Rxa8 {[%clk 0:00:33.2]}
31. d6 {[%clk 0:01:16.6]} 31... Rd8 {[%clk 0:00:33.8]} 32. Rd2 {[%clk
0:01:15.7]} 32... Rd7 {[%clk 0:00:34.4]} 33. Qd5 {[%clk 0:01:12.4]} 33... Qb4
{[%clk 0:00:34.2]} 34. Kh2 {[%clk 0:01:02.7]} 34... a5 {[%clk 0:00:24.7]} 35. f3
{[%clk 0:01:02]} 35... b5 {[%clk 0:00:23.7]} 36. e4 {[%clk 0:01:01.5]} 36... a4
{[%clk 0:00:16]} 37. e5 {[%clk 0:01:01.1]} 37... Kh7 {[%clk 0:00:16.7]} 38. Rd3
{[%clk 0:00:56.7]} 38... Bg7 {[%clk 0:00:11.4]} 39. e6 {[%clk 0:00:54.6]} 39...
fxe6 {[%clk 0:00:06.8]} 40. Qxe6 {[%clk 0:00:55.5]} 40... Rd8 {[%clk 0:00:04.2]}
41. d7 {[%clk 0:00:55.5]} 41... Qb1 {[%clk 0:00:04.1]} 42. Rd6 {[%clk
0:00:46.3]} 42... Qf5 {[%clk 0:00:04.2]} 43. Qxf5 {[%clk 0:00:43.6]} 43... gxf5
{[%clk 0:00:05.1]} 44. Rd5 {[%clk 0:00:43.8]} 44... Bf6 {[%clk 0:00:05.7]} 45.
Bc7 {[%clk 0:00:43.7]} 45... Ra8 {[%clk 0:00:05.9]} 46. Rxb5 {[%clk 0:00:41.4]}
46... Bd8 {[%clk 0:00:04.1]} 47. Bxd8 {[%clk 0:00:40.2]} 47... Rxd8 {[%clk
0:00:05]} 48. Rd5 {[%clk 0:00:39.4]} 48... Kg6 {[%clk 0:00:05.2]} 49. Kg3 {[%clk
0:00:39.5]} 49... Kf6 {[%clk 0:00:05.7]} 50. Kf4 {[%clk 0:00:39.2]} 1-0

[Event "*** Titled Tuesday Blitz"]
[Site "Chess.com"]
[Date "2020.04.21"]
[Round "3"]
[White "RaunakSadhwani2005"]
[Black "DrBergerBerger"]
[Result "1-0"]
[WhiteElo "2773"]
[BlackElo "2448"]
[TimeControl "180+1"]
[EndTime "10:28:56 PDT"]
[Termination "RaunakSadhwani2005 won on time"]

1. e4 {[%clk 0:03:00.9]} 1... e6 {[%clk 0:02:59.3]} 2. d4 {[%clk 0:02:57.1]}
2... d5 {[%clk 0:02:58.1]} 3. Nc3 {[%clk 0:02:56.5]} 3... Nf6 {[%clk 0:02:57.5]}
4. e5 {[%clk 0:02:54.7]} 4... Nfd7 {[%clk 0:02:57]} 5. f4 {[%clk 0:02:55.2]}
5... c5 {[%clk 0:02:55.8]} 6. Nf3 {[%clk 0:02:55.7]} 6... Nc6 {[%clk 0:02:56.1]}
7. Be3 {[%clk 0:02:55.9]} 7... Be7 {[%clk 0:02:56.7]} 8. Qd2 {[%clk 0:02:54.5]}
8... O-O {[%clk 0:02:57.2]} 9. Be2 {[%clk 0:02:54.4]} 9... a6 {[%clk 0:02:56.6]}
10. O-O {[%clk 0:02:53.4]} 10... b5 {[%clk 0:02:57.2]} 11. Nd1 {[%clk
0:02:53.3]} 11... Qb6 {[%clk 0:02:50.7]} 12. c3 {[%clk 0:02:51.2]} 12... a5
{[%clk 0:02:50.6]} 13. Nf2 {[%clk 0:02:48.8]} 13... b4 {[%clk 0:02:45.6]} 14. g4
{[%clk 0:02:48.5]} 14... a4 {[%clk 0:02:27.3]} 15. cxb4 {[%clk 0:01:54.5]} 15...
cxd4 {[%clk 0:02:16.4]} 16. Nxd4 {[%clk 0:01:47.8]} 16... Bxb4 {[%clk
0:01:46.7]} 17. Nxc6 {[%clk 0:01:40.9]} 17... Bxd2 {[%clk 0:01:46]} 18. Ne7+
{[%clk 0:01:40.8]} 18... Kh8 {[%clk 0:01:45.5]} 19. Bxb6 {[%clk 0:01:41.4]}
19... Nxb6 {[%clk 0:01:45.7]} 20. f5 {[%clk 0:01:21.5]} 20... exf5 {[%clk
0:01:24.3]} 21. gxf5 {[%clk 0:01:08.4]} 21... Bd7 {[%clk 0:01:02.2]} 22. f6
{[%clk 0:00:56.5]} 22... Be3 {[%clk 0:00:47.4]} 23. Kh1 {[%clk 0:00:50.7]} 23...
d4 {[%clk 0:00:34]} 24. Ne4 {[%clk 0:00:39.1]} 24... Rae8 {[%clk 0:00:22.9]} 25.
Nd6 {[%clk 0:00:32.1]} 25... Rd8 {[%clk 0:00:20.3]} 26. fxg7+ {[%clk 0:00:20.3]}
26... Kxg7 {[%clk 0:00:21.2]} 27. Bd3 {[%clk 0:00:20.6]} 27... Be6 {[%clk
0:00:20.1]} 28. Rf3 {[%clk 0:00:17]} 28... Nd5 {[%clk 0:00:19.7]} 29. Nef5+
{[%clk 0:00:14]} 29... Kh8 {[%clk 0:00:19]} 30. Nxe3 {[%clk 0:00:12.9]} 30...
Nxe3 {[%clk 0:00:16.2]} 31. Be4 {[%clk 0:00:10.2]} 31... Rg8 {[%clk 0:00:14.7]}
32. Nxf7+ {[%clk 0:00:09.5]} 32... Bxf7 {[%clk 0:00:11.8]} 33. Rxf7 {[%clk
0:00:10.4]} 33... Rg7 {[%clk 0:00:11.2]} 34. Rf4 {[%clk 0:00:07.8]} 34... Rdg8
{[%clk 0:00:09.7]} 35. e6 {[%clk 0:00:06.9]} 35... Re8 {[%clk 0:00:08.1]} 36.
Bf3 {[%clk 0:00:06.6]} 36... Rxe6 {[%clk 0:00:04.3]} 37. Rxd4 {[%clk 0:00:07.1]}
1-0

[Event "*** Titled Tuesday Blitz"]
[Site "Chess.com"]
[Date "2020.04.21"]
[Round "3"]
[White "Quattroporte300"]
[Black "Noghay"]
[Result "0-1"]
[WhiteElo "2274"]
[BlackElo "2590"]
[TimeControl "180+1"]
[EndTime "10:28:56 PDT"]
[Termination "Noghay won by resignation"]

1. e4 {[%clk 0:03:00.9]} 1... c6 {[%clk 0:02:59.5]} 2. d4 {[%clk 0:03:00.3]}
2... d5 {[%clk 0:03:00]} 3. Nc3 {[%clk 0:03:00.4]} 3... dxe4 {[%clk 0:02:59.9]}
4. Nxe4 {[%clk 0:03:00.1]} 4... Nd7 {[%clk 0:03:00.4]} 5. c3 {[%clk 0:02:58.1]}
5... Ngf6 {[%clk 0:03:00.5]} 6. Nxf6+ {[%clk 0:02:50.2]} 6... Nxf6 {[%clk
0:03:01.4]} 7. Bc4 {[%clk 0:02:38.7]} 7... g6 {[%clk 0:02:46.5]} 8. Nf3 {[%clk
0:02:33.4]} 8... Bg7 {[%clk 0:02:46.5]} 9. O-O {[%clk 0:02:31.5]} 9... O-O
{[%clk 0:02:45.4]} 10. h3 {[%clk 0:02:29.9]} 10... Nd5 {[%clk 0:02:43.3]} 11.
Re1 {[%clk 0:02:24.5]} 11... b6 {[%clk 0:02:20.7]} 12. Bb3 {[%clk 0:02:08.1]}
12... Bb7 {[%clk 0:02:18]} 13. Bg5 {[%clk 0:02:00.5]} 13... h6 {[%clk
0:02:04.2]} 14. Bxd5 {[%clk 0:01:36]} 14... hxg5 {[%clk 0:02:02.2]} 15. Bb3
{[%clk 0:01:34.9]} 15... e6 {[%clk 0:01:54.9]} 16. Qd2 {[%clk 0:01:29.8]} 16...
Bf6 {[%clk 0:01:54.5]} 17. Rad1 {[%clk 0:01:25]} 17... Kg7 {[%clk 0:01:50]} 18.
Nh2 {[%clk 0:01:18.1]} 18... Rc8 {[%clk 0:01:41]} 19. Ng4 {[%clk 0:01:17.4]}
19... Be7 {[%clk 0:01:21]} 20. Qe3 {[%clk 0:01:01.8]} 20... Qd6 {[%clk
0:01:08.9]} 21. h4 {[%clk 0:00:31.7]} 21... Rh8 {[%clk 0:01:05.1]} 22. hxg5
{[%clk 0:00:23.4]} 22... Rh4 {[%clk 0:00:50.7]} 23. f3 {[%clk 0:00:16.4]} 23...
Rch8 {[%clk 0:00:40.7]} 24. Qe5+ {[%clk 0:00:15]} 24... Qxe5 {[%clk 0:00:33]}
25. dxe5 {[%clk 0:00:14.8]} 25... Bc5+ {[%clk 0:00:32.8]} 26. Kf1 {[%clk
0:00:11.7]} 26... Ba6+ {[%clk 0:00:32.8]} 27. c4 {[%clk 0:00:10.3]} 27... b5
{[%clk 0:00:26.9]} 28. Rc1 {[%clk 0:00:05.7]} 28... Rd8 {[%clk 0:00:19.4]} 29.
Ke2 {[%clk 0:00:04.6]} 29... Rd4 {[%clk 0:00:15.6]} 30. Red1 {[%clk 0:00:05.2]}
30... bxc4 {[%clk 0:00:12.1]} 31. Rxd4 {[%clk 0:00:04.5]} 31... cxb3+ {[%clk
0:00:11.2]} 32. Rdc4 {[%clk 0:00:03.9]} 32... bxa2 {[%clk 0:00:08.9]} 33. b3
{[%clk 0:00:03.1]} 33... Bd4 {[%clk 0:00:07.9]} 34. Kd2 {[%clk 0:00:02.2]} 34...
Bxc4 {[%clk 0:00:07.1]} 35. bxc4 {[%clk 0:00:02]} 35... a1=Q {[%clk 0:00:08]}
0-1

[Event "*** Titled Tuesday Blitz"]
[Site "Chess.com"]
[Date "2020.04.21"]
[Round "3"]
[White "jerry_77"]
[Black "crossingthestreet"]
[Result "0-1"]
[WhiteElo "2476"]
[BlackElo "2264"]
[TimeControl "180+1"]
[EndTime "10:28:56 PDT"]
[Termination "crossingthestreet won by resignation"]

1. e4 {[%clk 0:02:59.1]} 1... e6 {[%clk 0:02:59.7]} 2. Nf3 {[%clk 0:02:55.9]}
2... d5 {[%clk 0:03:00]} 3. Nc3 {[%clk 0:02:56.8]} 3... Nf6 {[%clk 0:02:59.2]}
4. e5 {[%clk 0:02:57.1]} 4... Nfd7 {[%clk 0:02:59]} 5. d4 {[%clk 0:02:58]} 5...
c5 {[%clk 0:02:59.1]} 6. Ne2 {[%clk 0:02:58.9]} 6... Nc6 {[%clk 0:02:57.9]} 7.
c3 {[%clk 0:02:58.9]} 7... Qb6 {[%clk 0:02:50.9]} 8. a3 {[%clk 0:02:58.2]} 8...
f6 {[%clk 0:02:44.6]} 9. Nf4 {[%clk 0:02:56.8]} 9... fxe5 {[%clk 0:02:28.9]} 10.
Nxe6 {[%clk 0:02:56.4]} 10... Nxd4 {[%clk 0:02:24.9]} 11. Nexd4 {[%clk
0:02:27.7]} 11... cxd4 {[%clk 0:02:21.9]} 12. cxd4 {[%clk 0:02:28.6]} 12... e4
{[%clk 0:02:19]} 13. Ng5 {[%clk 0:02:25.2]} 13... Nf6 {[%clk 0:02:07.7]} 14. Be2
{[%clk 0:02:10.2]} 14... Bd6 {[%clk 0:02:07.2]} 15. Nh3 {[%clk 0:01:54.6]} 15...
Bxh3 {[%clk 0:01:55.3]} 16. gxh3 {[%clk 0:01:55.5]} 16... O-O {[%clk 0:01:55.3]}
17. Qa4 {[%clk 0:01:47]} 17... Rac8 {[%clk 0:01:46.2]} 18. Qb5 {[%clk
0:01:27.3]} 18... Qc7 {[%clk 0:01:36]} 19. Bg5 {[%clk 0:01:17.8]} 19... a6
{[%clk 0:01:26.3]} 20. Qb3 {[%clk 0:01:13.4]} 20... Qf7 {[%clk 0:01:13.9]} 21.
Bxf6 {[%clk 0:01:12.6]} 21... Qxf6 {[%clk 0:01:01.4]} 22. Qxd5+ {[%clk
0:01:10.9]} 22... Kh8 {[%clk 0:01:01.6]} 23. Rf1 {[%clk 0:01:05.4]} 23... Rc2
{[%clk 0:00:44.5]} 24. Qb3 {[%clk 0:01:02.9]} 24... Rfc8 {[%clk 0:00:36.1]} 25.
Rd1 {[%clk 0:00:57.9]} 25... Bc7 {[%clk 0:00:20.5]} 26. Qb4 {[%clk 0:00:10.1]}
26... Qf5 {[%clk 0:00:15.6]} 27. Bg4 {[%clk 0:00:09.4]} 27... Qg5 {[%clk
0:00:14.8]} 28. Bxc8 {[%clk 0:00:08.9]} 28... Ba5 {[%clk 0:00:14.9]} 29. Qxa5
{[%clk 0:00:09]} 29... Qxa5+ {[%clk 0:00:14.3]} 30. b4 {[%clk 0:00:09.3]} 30...
Qxa3 {[%clk 0:00:14.2]} 31. Rg1 {[%clk 0:00:05.4]} 31... Rxc8 {[%clk 0:00:14]}
32. d5 {[%clk 0:00:05.2]} 32... Qxb4+ {[%clk 0:00:14.2]} 33. Kf1 {[%clk
0:00:04.8]} 33... Rd8 {[%clk 0:00:13.6]} 34. Rg3 {[%clk 0:00:04.7]} 34... Qc4+
{[%clk 0:00:13]} 35. Kg1 {[%clk 0:00:04.8]} 35... Rxd5 {[%clk 0:00:13]} 36. Re1
{[%clk 0:00:05.4]} 36... b5 {[%clk 0:00:11.8]} 37. Rge3 {[%clk 0:00:05.7]} 37...
Rd4 {[%clk 0:00:11.5]} 38. Ra3 {[%clk 0:00:05.7]} 38... b4 {[%clk 0:00:10.8]}
39. Raa1 {[%clk 0:00:04.9]} 39... h6 {[%clk 0:00:10.7]} 40. Rec1 {[%clk
0:00:04.8]} 40... Qd5 {[%clk 0:00:10.8]} 41. Rcb1 {[%clk 0:00:04.8]} 41... b3
{[%clk 0:00:10.6]} 42. Rxa6 {[%clk 0:00:04.4]} 42... Rd1+ {[%clk 0:00:10.2]} 0-1

[Event "*** Titled Tuesday Blitz"]
[Site "Chess.com"]
[Date "2020.04.21"]
[Round "3"]
[White "Bubar"]
[Black "RATNAKARAN"]
[Result "0-1"]
[WhiteElo "2335"]
[BlackElo "2570"]
[TimeControl "180+1"]
[EndTime "10:28:58 PDT"]
[Termination "RATNAKARAN won by resignation"]

1. d4 {[%clk 0:03:00.9]} 1... Nf6 {[%clk 0:02:58.2]} 2. Nf3 {[%clk 0:03:00.7]}
2... g6 {[%clk 0:02:57.7]} 3. c4 {[%clk 0:03:00.7]} 3... Bg7 {[%clk 0:02:57.5]}
4. Nc3 {[%clk 0:02:59.2]} 4... O-O {[%clk 0:02:58.1]} 5. Bg5 {[%clk 0:02:58.5]}
5... d6 {[%clk 0:02:59]} 6. e3 {[%clk 0:02:58.2]} 6... Nbd7 {[%clk 0:02:58.4]}
7. Be2 {[%clk 0:02:58.4]} 7... e5 {[%clk 0:02:58.5]} 8. O-O {[%clk 0:02:58.4]}
8... Re8 {[%clk 0:02:58.4]} 9. Qc2 {[%clk 0:02:58.6]} 9... h6 {[%clk 0:02:56.4]}
10. Bh4 {[%clk 0:02:57.8]} 10... g5 {[%clk 0:02:56.7]} 11. Bg3 {[%clk
0:02:57.7]} 11... Nh5 {[%clk 0:02:49.1]} 12. Rad1 {[%clk 0:02:55.7]} 12... Nxg3
{[%clk 0:02:46.2]} 13. hxg3 {[%clk 0:02:55.1]} 13... c6 {[%clk 0:02:46.6]} 14.
dxe5 {[%clk 0:02:46.4]} 14... dxe5 {[%clk 0:02:46.1]} 15. Bd3 {[%clk 0:02:43.2]}
15... Qe7 {[%clk 0:02:42.9]} 16. Bf5 {[%clk 0:02:42.9]} 16... Nc5 {[%clk
0:02:40.2]} 17. Bxc8 {[%clk 0:02:42.6]} 17... Raxc8 {[%clk 0:02:39.6]} 18. Ne4
{[%clk 0:02:41]} 18... Nxe4 {[%clk 0:02:38.1]} 19. Qxe4 {[%clk 0:02:40.9]} 19...
Qe6 {[%clk 0:02:38.5]} 20. g4 {[%clk 0:02:39.9]} 20... Rcd8 {[%clk 0:02:33]} 21.
b3 {[%clk 0:02:39.6]} 21... Bf6 {[%clk 0:02:31.6]} 22. Rfe1 {[%clk 0:02:26.4]}
22... Kg7 {[%clk 0:02:30.6]} 23. Nh2 {[%clk 0:02:26.4]} 23... Be7 {[%clk
0:02:28.5]} 24. Nf1 {[%clk 0:02:25.6]} 24... Bb4 {[%clk 0:02:27.8]} 25. Rxd8
{[%clk 0:02:22.5]} 25... Rxd8 {[%clk 0:02:27.2]} 26. Rb1 {[%clk 0:02:20]} 26...
h5 {[%clk 0:02:20.3]} 27. Ng3 {[%clk 0:02:18.6]} 27... hxg4 {[%clk 0:02:15.7]}
28. Nf5+ {[%clk 0:02:16.9]} 28... Kf6 {[%clk 0:02:07.2]} 29. Nh6 {[%clk
0:02:10]} 29... Ke7 {[%clk 0:01:58.8]} 30. Nf5+ {[%clk 0:02:06.8]} 30... Kf8
{[%clk 0:01:36.7]} 31. Qxg4 {[%clk 0:02:04.9]} 31... Qg6 {[%clk 0:01:33.8]} 32.
Qe4 {[%clk 0:01:57.5]} 32... Bc3 {[%clk 0:01:23.5]} 33. g4 {[%clk 0:01:50.6]}
33... Rd2 {[%clk 0:01:20.1]} 34. Kg2 {[%clk 0:01:48.9]} 34... Qh7 {[%clk
0:01:09.3]} 35. Qf3 {[%clk 0:01:27.7]} 35... Ke8 {[%clk 0:01:01.6]} 36. Rh1
{[%clk 0:01:26.2]} 36... Qg8 {[%clk 0:01:00.8]} 37. Qe4 {[%clk 0:01:22.8]} 37...
Kd7 {[%clk 0:00:57.5]} 38. Rh6 {[%clk 0:01:21.4]} 38... Kc7 {[%clk 0:00:56.4]}
39. Rf6 {[%clk 0:01:20.4]} 39... a5 {[%clk 0:00:49]} 40. c5 {[%clk 0:01:18.7]}
40... Kb8 {[%clk 0:00:40.9]} 41. Nd6 {[%clk 0:01:11.2]} 41... Ka7 {[%clk
0:00:31.8]} 42. Rxf7 {[%clk 0:01:10.4]} 42... Rxd6 {[%clk 0:00:30.9]} 43. Qc4
{[%clk 0:01:03.1]} 43... Rd5 {[%clk 0:00:29.8]} 44. Rf5 {[%clk 0:00:55]} 44...
Bb4 {[%clk 0:00:29]} 45. Rxe5 {[%clk 0:00:49.3]} 45... Qd8 {[%clk 0:00:26]} 46.
Re4 {[%clk 0:00:44.9]} 46... Rxc5 {[%clk 0:00:25.6]} 47. Qe2 {[%clk 0:00:43.5]}
47... Qd5 {[%clk 0:00:25]} 48. Qf3 {[%clk 0:00:42.9]} 48... Rc2 {[%clk
0:00:24.7]} 49. a3 {[%clk 0:00:41.2]} 49... Be1 {[%clk 0:00:24.5]} 50. Kh1
{[%clk 0:00:24.8]} 50... Rxf2 {[%clk 0:00:23.8]} 0-1